[Event "2nd Hersonissos Open 2018"]
[Site "Hersonissos"]
[Date "2018.06.22"]
[Round "7"]
[White "Pliev, Vladimir"]
[Black "Papidakis, Georgios"]
[Result "1-0"]
[ECO "B40"]
[WhiteElo "1909"]
[BlackElo "1710"]
[Annotator "NA"]
[PlyCount "161"]
[EventDate "2018.06.16"]
[EventType "swiss"]
[EventCountry "GRE"]
[SourceTitle "playchess.com"]
[Source "ChessBase"]
[SourceQuality "1"]
[TimeControl "5400+30"]

1. e4 {[%emt 0:00:00]} c5 {[%emt 0:00:04]} 2. Nf3 {[%emt 0:00:00]} e6 {[%emt 0:00:05]} 3. d4 {[%emt 0:00:00]} cxd4 {[%emt 0:00:06]} 4. c3 {[%emt 0:00:00]} d3 {[%emt 0:01:14]} 5. Bxd3 {[%emt 0:00:04]} d6 {[%emt 0:00:19]} 6. Bf4 {[%emt 0:00:18]} Qc7 {[%emt 0:00:26]} 7. Nbd2 {[%emt 0:00:37]} Nf6 {[%emt 0:00:43]} 8. O-O {[%emt 0:01:16]} Be7 {[%emt 0:00:19]} 9. Re1 {[%emt 0:01:28]} Nbd7 {[%emt 0:03:22]} 10. Nc4 {[%emt 0:03:51]} b5 {[%emt 0:07:13]} 11. Nxd6+ {[%emt 0:04:43]} Bxd6 {[%emt 0:01:28]} 12. Bxd6 {[%emt 0:00:29]} Qxd6 {[%emt 0:00:20]} 13. e5 {[%emt 0:00:10]} Qb6 {[%emt 0:01:33]} 14. exf6 {[%emt 0:00:18]} Nxf6 {[%emt 0:01:17]} 15. Qb3 {[%emt 0:01:34]} Rb8 {[%emt 0:11:51]} 16. Nd4 {[%emt 0:04:19]} Bd7 {[%emt 0:03:10]} 17. Rad1 {[%emt 0:04:22]} O-O {[%emt 0:04:54]} 18. Qc2 {[%emt 0:00:32]} Rfc8 {[%emt 0:01:58]} 19. Nf3 {[%emt 0:01:18]} Bc6 {[%emt 0:02:23]} 20. Qe2 {[%emt 0:03:30]} Qb7 {[%emt 0:21:09]} 21. Qe3 {[%emt 0:05:35]} h6 {[%emt 0:04:55]} 22. Bf1 {[%emt 0:00:53]} Bd5 {[%emt 0:09:44]} 23. Nd4 {[%emt 0:03:04]} Bc4 {[%emt 0:05:58]} 24. a3 {[%emt 0:07:55]} a5 {[%emt 0:02:48]} 25. Qe5 {[%emt 0:01:18]} Bxf1 {[%emt 0:04:03]} 26. Rxf1 {[%emt 0:00:14]} Nd7 {[%emt 0:01:56]} 27. Qd6 {[%emt 0:00:46]} Nb6 {[%emt 0:02:07]} 28. Qe5 {[%emt 0:04:34]} Na4 {[%emt 0:02:28]} 29. Qe2 {[%emt 0:01:44]} b4 {[%emt 0:02:50]} 30. axb4 {[%emt 0:03:21]} axb4 {[%emt 0:00:09]} 31. c4 {[%emt 0:01:23]} Nb6 {[%emt 0:04:06]} 32. b3 {[%emt 0:00:43]} Rd8 {[%emt 0:00:49]} 33. Qg4 {[%emt 0:02:09]} Na8 {[%emt 0:00:36]} 34. Qf3 {[%emt 0:02:08]} Qxf3 {[%emt 0:00:31]} 35. gxf3 {[%emt 0:00:09]} Rbc8 {[%emt 0:00:31]} 36. Nc6 {[%emt 0:01:54]} Re8 {[%emt 0:00:32]} 37. Rd6 {[%emt 0:03:19]} Nc7 {[%emt 0:00:27]} 38. Ra1 {[%emt 0:00:38]} Ra8 {[%emt 0:00:31]} 39. Rxa8 {[%emt 0:01:24]} Rxa8 {[%emt 0:00:11]} 40. Rd7 {[%emt 0:00:00]} Na6 {[%emt 0:00:00]} 41. Rb7 {[%emt 0:00:00]} Kf8 {[%emt 0:00:00]} 42. Kg2 {[%emt 0:00:00]} Ke8 {[%emt 0:00:00]} 43. Rb6 {[%emt 0:00:00]} Nc5 {[%emt 0:00:00]} 44. Rxb4 {[%emt 0:00:00]} Ra3 {[%emt 0:00:00]} 45. Rb8+ {[%emt 0:00:00]} Kd7 {[%emt 0:00:00]} 46. Ne5+ {[%emt 0:00:00]} Kc7 {[%emt 0:00:00]} 47. Rb5 {[%emt 0:00:00]} Nxb3 {[%emt 0:00:00]} 48. Nxf7 {[%emt 0:00:00]} Nd4 {[%emt 0:00:00]} 49. Rc5+ {[%emt 0:00:00]} Kb6 {[%emt 0:00:00]} 50. Re5 {[%emt 0:00:00]} Nxf3 {[%emt 0:00:51]} 51. Rxe6+ {[%emt 0:00:00]} Kc5 {[%emt 0:01:53]} 52. Ne5 {[%emt 0:00:00]} Nxe5 {[%emt 0:03:49]} 53. Rxe5+ {[%emt 0:00:00]} Kxc4 {[%emt 0:00:29]} 54. Re7 {[%emt 0:00:00]} g5 {[%emt 0:00:44]} 55. Re6 {[%emt 0:00:00]} h5 {[%emt 0:00:22]} 56. Re5 {[%emt 0:00:00]} h4 {[%emt 0:00:15]} 57. h3 {[%emt 0:00:00]} Kd4 {[%emt 0:00:56]} 58. Rxg5 {[%emt 0:00:00]} Kd3 {[%emt 0:00:30]} 59. Rg4 {[%emt 0:00:00]} Ke2 {[%emt 0:00:28]} 60. Rxh4 {[%emt 0:00:00]} Ra8 {[%emt 0:00:34]} 61. Re4+ {[%emt 0:00:00]} Kd3 {[%emt 0:00:31]} 62. f3 {[%emt 0:00:00]} Rg8+ {[%emt 0:00:10]} 63. Kf2 {[%emt 0:00:00]} Rh8 {[%emt 0:00:06]} 64. h4 {[%emt 0:00:00]} Rh5 {[%emt 0:00:01]} 65. Kg3 {[%emt 0:00:00]} Rh8 {[%emt 0:00:15]} 66. Re5 {[%emt 0:00:00]} Kd4 {[%emt 0:00:28]} 67. f4 {[%emt 0:00:00]} Rg8+ {[%emt 0:00:04]} 68. Kf3 {[%emt 0:00:00]} Ra8 {[%emt 0:00:02]} 69. h5 {[%emt 0:00:00]} Ra1 {[%emt 0:00:40]} 70. h6 {[%emt 0:00:00]} Rh1 {[%emt 0:00:08]} 71. Re6 {[%emt 0:00:00]} Kd5 {[%emt 0:00:04]} 72. f5 {[%emt 0:00:00]} Rf1+ {[%emt 0:00:48]} 73. Kg4 {[%emt 0:00:00]} Rg1+ {[%emt 0:00:01]} 74. Kf4 {[%emt 0:00:00]} Rf1+ {[%emt 0:00:59]} 75. Kg5 {[%emt 0:00:00]} Rh1 {[%emt 0:00:08]} 76. Kg6 {[%emt 0:00:00]} Rg1+ {[%emt 0:00:06]} 77. Kf6 {[%emt 0:00:00]} Rh1 {[%emt 0:00:26]} 78. Kg7 {[%emt 0:00:00]} Rg1+ {[%emt 0:00:07]} 79. Rg6 {[%emt 0:00:00]} Ra1 {[%emt 0:00:13]} 80. h7 {[%emt 0:00:00]} Ra7+ {[%emt 0:00:07]} 81. Kh6 1-0

[Event "2nd Hersonissos Open 2018"]
[Site "Hersonissos"]
[Date "2018.06.22"]
[Round "7"]
[White "Lichii, Elizaveta"]
[Black "Ergazaki, Eirini"]
[Result "0-1"]
[ECO "C75"]
[WhiteElo "1888"]
[BlackElo "1348"]
[Annotator "NA"]
[PlyCount "72"]
[EventDate "2018.06.16"]
[EventType "swiss"]
[EventCountry "GRE"]
[SourceTitle "playchess.com"]
[Source "ChessBase"]
[SourceQuality "1"]
[TimeControl "5400+30"]

1. e4 {[%emt 0:00:00]} e5 {[%emt 0:00:05]} 2. Nf3 {[%emt 0:00:00]} Nc6 {[%emt 0:00:06]} 3. Bb5 {[%emt 0:00:00]} a6 {[%emt 0:00:06]} 4. Ba4 {[%emt 0:00:00]} d6 {[%emt 0:00:16]} 5. c3 {[%emt 0:03:04]} Bd7 {[%emt 0:01:14]} 6. O-O {[%emt 0:01:46]} g6 {[%emt 0:00:48]} 7. d4 {[%emt 0:01:55]} Bg7 {[%emt 0:00:54]} 8. d5 {[%emt 0:05:52]} Nce7 {[%emt 0:04:03]} 9. Bc2 {[%emt 0:09:16]} h6 {[%emt 0:02:11]} 10. Nfd2 {[%emt 0:17:15]} f5 {[%emt 0:06:43]} 11. exf5 {[%emt 0:03:22]} Nxf5 {[%emt 0:03:16]} 12. Ne4 {[%emt 0:02:23]} Nf6 {[%emt 0:02:34]} 13. f4 {[%emt 0:08:32]} Nxe4 {[%emt 0:08:48]} 14. Bxe4 {[%emt 0:02:02]} exf4 {[%emt 0:02:01]} 15. Bxf5 {[%emt 0:11:23]} Bxf5 {[%emt 0:00:32]} 16. Re1+ {[%emt 0:02:47]} Kf7 {[%emt 0:00:46]} 17. Bxf4 {[%emt 0:01:28]} Re8 {[%emt 0:01:29]} 18. Nd2 {[%emt 0:01:11]} Rxe1+ {[%emt 0:06:52]} 19. Qxe1 {[%emt 0:00:05]} Qe8 {[%emt 0:00:13]} 20. Qf2 {[%emt 0:00:25]} Qb5 {[%emt 0:03:27]} 21. Nf1 {[%emt 0:13:40]} Kg8 {[%emt 0:07:44]} 22. Qd2 {[%emt 0:02:44]} g5 {[%emt 0:02:26]} 23. Ng3 {[%emt 0:00:54]} Bh7 {[%emt 0:01:38]} 24. Be3 {[%emt 0:00:26]} Re8 {[%emt 0:01:53]} 25. Rd1 {[%emt 0:05:49]} Qc4 {[%emt 0:01:46]} 26. a3 {[%emt 0:02:07]} Qb3 {[%emt 0:01:43]} 27. Nh5 {[%emt 0:00:55]} Be5 {[%emt 0:03:55]} 28. Rf1 {[%emt 0:01:05]} Rf8 {[%emt 0:01:36]} 29. Rxf8+ {[%emt 0:01:20]} Kxf8 {[%emt 0:00:23]} 30. h4 {[%emt 0:01:36]} Bg6 {[%emt 0:04:46]} 31. Qf2+ {[%emt 0:01:06]} Kg8 {[%emt 0:01:08]} 32. Nf6+ {[%emt 0:00:18]} Kg7 {[%emt 0:00:44]} 33. Nd7 {[%emt 0:00:41]} Qd1+ {[%emt 0:00:49]} 34. Qf1 {[%emt 0:00:06]} Bh2+ {[%emt 0:00:22]} 35. Kf2 {[%emt 0:00:04]} Qc2+ {[%emt 0:04:37]} 36. Qe2 {[%emt 0:01:26]} Bg3+ {[%emt 0:01:48]} 0-1

[Event "2nd Hersonissos Open 2018"]
[Site "Hersonissos"]
[Date "2018.06.22"]
[Round "7"]
[White "Brokalakis - Gounaris, Christos"]
[Black "L'Ami, Alina"]
[Result "0-1"]
[ECO "E93"]
[WhiteElo "1851"]
[BlackElo "2307"]
[Annotator "NA"]
[PlyCount "77"]
[EventDate "2018.06.16"]
[EventType "swiss"]
[EventCountry "GRE"]
[SourceTitle "playchess.com"]
[Source "ChessBase"]
[SourceQuality "1"]
[TimeControl "5400+30"]

1. d4 {[%emt 0:00:00]} Nf6 {[%emt 0:02:07]} 2. c4 {[%emt 0:00:00]} g6 {[%emt 0:00:23]} 3. Nc3 {[%emt 0:00:28]} Bg7 {[%emt 0:00:05]} 4. e4 {[%emt 0:01:07]} d6 {[%emt 0:00:05]} 5. Be2 {[%emt 0:00:34]} O-O {[%emt 0:00:21]} 6. Nf3 {[%emt 0:00:33]} e5 {[%emt 0:02:44]} 7. d5 {[%emt 0:00:59]} Nbd7 {[%emt 0:02:55]} 8. Be3 {[%emt 0:01:14]} Ng4 {[%emt 0:06:46]} 9. Bg5 {[%emt 0:00:43]} f6 {[%emt 0:00:41]} 10. Bd2 {[%emt 0:01:16]} f5 {[%emt 0:17:57]} 11. exf5 {[%emt 0:14:49]} gxf5 {[%emt 0:01:00]} 12. Ng5 {[%emt 0:02:51]} Nc5 {[%emt 0:05:08]} 13. Qc2 {[%emt 0:08:41]} e4 {[%emt 0:13:32]} 14. Nh3 {[%emt 0:21:44]} f4 {[%emt 0:23:33]} 15. Nxf4 {[%emt 0:17:38]} Nd3+ {[%emt 0:10:47]} 16. Bxd3 {[%emt 0:12:21]} exd3 {[%emt 0:00:03]} 17. Qxd3 {[%emt 0:01:04]} Bh6 {[%emt 0:03:36]} 18. Qg3 {[%emt 0:05:41]} Qe7+ {[%emt 0:01:27]} 19. Kf1 {[%emt 0:03:18]} Qf6 {[%emt 0:03:52]} 20. h3 {[%emt 0:01:34]} Bxf4 {[%emt 0:00:55]} 21. Bxf4 {[%emt 0:00:09]} Qxf4 {[%emt 0:00:16]} 22. Qxf4 {[%emt 0:00:23]} Rxf4 {[%emt 0:00:02]} 23. hxg4 {[%emt 0:00:13]} Bxg4 {[%emt 0:00:47]} 24. f3 {[%emt 0:02:38]} Raf8 {[%emt 0:00:06]} 25. b3 {[%emt 0:00:19]} Bxf3 {[%emt 0:00:36]} 26. gxf3 {[%emt 0:01:20]} Rxf3+ {[%emt 0:00:01]} 27. Ke2 {[%emt 0:00:11]} Rxc3 {[%emt 0:00:03]} 28. Rag1+ {[%emt 0:00:49]} Kh8 {[%emt 0:00:18]} 29. Kd2 {[%emt 0:00:25]} Rcf3 {[%emt 0:00:05]} 30. Kc2 {[%emt 0:01:04]} Rf2+ {[%emt 0:00:09]} 31. Kb1 {[%emt 0:00:04]} Re8 {[%emt 0:01:54]} 32. Re1 {[%emt 0:00:45]} Rxe1+ {[%emt 0:00:58]} 33. Rxe1 {[%emt 0:00:01]} Kg7 {[%emt 0:00:12]} 34. Re7+ {[%emt 0:00:25]} Rf7 {[%emt 0:00:02]} 35. Re2 {[%emt 0:00:13]} h5 {[%emt 0:00:17]} 36. Kc2 {[%emt 0:00:36]} Kh6 {[%emt 0:01:20]} 37. Kd2 {[%emt 0:00:25]} h4 {[%emt 0:00:15]} 38. Ke1 {[%emt 0:00:28]} Rf5 {[%emt 0:02:41]} 39. Re8 {[%emt 0:00:32]} 0-1

[Event "2nd Hersonissos Open 2018"]
[Site "Hersonissos"]
[Date "2018.06.22"]
[Round "7"]
[White "Parker, Keith"]
[Black "Aggelakis, Ilias"]
[Result "1-0"]
[ECO "D00"]
[WhiteElo "1846"]
[BlackElo "1683"]
[Annotator "NA"]
[PlyCount "61"]
[EventDate "2018.06.16"]
[EventType "swiss"]
[EventCountry "GRE"]
[SourceTitle "playchess.com"]
[Source "ChessBase"]
[SourceQuality "1"]
[TimeControl "5400+30"]

1. d4 {[%emt 0:00:00]} d5 {[%emt 0:00:05]} 2. Bf4 {[%emt 0:00:00]} Nf6 {[%emt 0:00:08]} 3. e3 {[%emt 0:00:00]} e6 {[%emt 0:00:05]} 4. Nd2 {[%emt 0:00:30]} Bd6 {[%emt 0:00:05]} 5. Bg3 {[%emt 0:00:17]} O-O {[%emt 0:00:35]} 6. Bd3 {[%emt 0:00:20]} b6 {[%emt 0:00:11]} 7. Ngf3 {[%emt 0:01:03]} Bb7 {[%emt 0:00:05]} 8. Ne5 {[%emt 0:02:08]} c5 {[%emt 0:00:10]} 9. c3 {[%emt 0:00:03]} Ne4 {[%emt 0:08:03]} 10. Qh5 {[%emt 0:04:10]} f5 {[%emt 0:06:11]} 11. Nxe4 {[%emt 0:07:58]} dxe4 {[%emt 0:07:16]} 12. Bc4 {[%emt 0:04:27]} Bd5 {[%emt 0:03:42]} 13. Rd1 {[%emt 0:17:32]} cxd4 {[%emt 0:12:02]} 14. Bxd5 {[%emt 0:02:12]} exd5 {[%emt 0:00:39]} 15. cxd4 {[%emt 0:05:07]} Bb4+ {[%emt 0:10:25]} 16. Kf1 {[%emt 0:00:31]} Bd6 {[%emt 0:07:34]} 17. f4 {[%emt 0:04:29]} Nd7 {[%emt 0:00:51]} 18. Rc1 {[%emt 0:08:09]} Rc8 {[%emt 0:00:59]} 19. Kf2 {[%emt 0:04:10]} Bxe5 {[%emt 0:10:21]} 20. fxe5 {[%emt 0:01:06]} Qe8 {[%emt 0:01:33]} 21. Qe2 {[%emt 0:05:32]} g5 {[%emt 0:03:55]} 22. Rhf1 {[%emt 0:04:29]} f4 {[%emt 0:01:52]} 23. exf4 {[%emt 0:00:47]} Kh8 {[%emt 0:01:13]} 24. Qg4 {[%emt 0:04:53]} Rxc1 {[%emt 0:00:49]} 25. Rxc1 {[%emt 0:00:05]} gxf4 {[%emt 0:00:04]} 26. Bxf4 {[%emt 0:00:38]} Nxe5 {[%emt 0:00:54]} 27. dxe5 {[%emt 0:04:24]} Qxe5 {[%emt 0:00:04]} 28. Kg3 {[%emt 0:03:12]} Qxb2 {[%emt 0:01:33]} 29. Rc8 {[%emt 0:01:26]} Qa3+ {[%emt 0:00:04]} 30. Kh4 {[%emt 0:00:39]} Rxc8 {[%emt 0:02:13]} 31. Be5# 1-0

[Event "2nd Hersonissos Open 2018"]
[Site "Hersonissos"]
[Date "2018.06.22"]
[Round "7"]
[White "Iminov, Bachtiar"]
[Black "Haverkamp, Klaus"]
[Result "0-1"]
[ECO "A05"]
[WhiteElo "1842"]
[BlackElo "1921"]
[Annotator "NA"]
[PlyCount "72"]
[EventDate "2018.06.16"]
[EventType "swiss"]
[EventCountry "GRE"]
[SourceTitle "playchess.com"]
[Source "ChessBase"]
[SourceQuality "1"]
[TimeControl "5400+30"]

1. Nf3 {[%emt 0:00:00]} Nf6 {[%emt 0:03:21]} 2. c4 {[%emt 0:00:00]} g6 {[%emt 0:01:11]} 3. b4 {[%emt 0:00:00]} Bg7 {[%emt 0:03:38]} 4. Bb2 {[%emt 0:03:17]} O-O {[%emt 0:00:22]} 5. g3 {[%emt 0:00:09]} a5 {[%emt 0:01:25]} 6. b5 {[%emt 0:01:01]} b6 {[%emt 0:00:55]} 7. Bg2 {[%emt 0:00:33]} Bb7 {[%emt 0:00:25]} 8. O-O {[%emt 0:00:59]} d6 9. d4 {[%emt 0:05:20]} Nfd7 {[%emt 0:07:32]} 10. Qc2 {[%emt 0:05:20]} Qc8 {[%emt 0:11:09]} 11. Nc3 {[%emt 0:03:38]} Re8 {[%emt 0:02:06]} 12. Rac1 {[%emt 0:01:55]} e5 {[%emt 0:01:24]} 13. e3 {[%emt 0:03:37]} f5 {[%emt 0:05:54]} 14. Na4 {[%emt 0:08:23]} Bxf3 {[%emt 0:05:06]} 15. Bxf3 {[%emt 0:00:30]} e4 {[%emt 0:00:07]} 16. Bg2 {[%emt 0:00:44]} Qd8 {[%emt 0:04:18]} 17. c5 {[%emt 0:03:36]} bxc5 {[%emt 0:06:04]} 18. dxc5 {[%emt 0:02:34]} dxc5 {[%emt 0:01:46]} 19. Bxg7 {[%emt 0:00:51]} Kxg7 {[%emt 0:00:53]} 20. Rfd1 {[%emt 0:00:45]} Qf6 {[%emt 0:02:15]} 21. Nxc5 {[%emt 0:00:25]} Ne5 {[%emt 0:02:02]} 22. Qb3 {[%emt 0:07:41]} Ra7 {[%emt 0:04:14]} 23. Rc2 {[%emt 0:07:02]} Qb6 {[%emt 0:08:03]} 24. Qd5 {[%emt 0:10:25]} Kh6 {[%emt 0:09:25]} 25. Bf1 {[%emt 0:07:00]} c6 {[%emt 0:02:18]} 26. Na4 {[%emt 0:01:36]} Qb7 {[%emt 0:03:52]} 27. bxc6 {[%emt 0:01:48]} Nbxc6 {[%emt 0:00:33]} 28. Rb2 {[%emt 0:02:27]} Qe7 {[%emt 0:00:42]} 29. Nc5 {[%emt 0:07:11]} Rd8 {[%emt 0:02:33]} 30. Qb3 {[%emt 0:01:32]} Rxd1 {[%emt 0:00:12]} 31. Qxd1 {[%emt 0:00:11]} Qxc5 {[%emt 0:00:11]} 32. Rc2 {[%emt 0:00:06]} Qe7 {[%emt 0:00:20]} 33. Qd5 {[%emt 0:00:32]} Rd7 {[%emt 0:00:53]} 34. Qb5 {[%emt 0:00:26]} Nf3+ {[%emt 0:00:55]} 35. Kh1 {[%emt 0:00:34]} Nce5 {[%emt 0:00:38]} 36. Qxa5 {[%emt 0:01:08]} Qd8 {[%emt 0:00:47]} 0-1

[Event "2nd Hersonissos Open 2018"]
[Site "Hersonissos"]
[Date "2018.06.22"]
[Round "7"]
[White "Kouvidis, Ioannis"]
[Black "Loshkarev, Dmitri"]
[Result "1-0"]
[ECO "C46"]
[WhiteElo "1730"]
[BlackElo "2089"]
[Annotator "NA"]
[PlyCount "47"]
[EventDate "2018.06.16"]
[EventType "swiss"]
[EventCountry "GRE"]
[SourceTitle "playchess.com"]
[Source "ChessBase"]
[SourceQuality "1"]
[TimeControl "5400+30"]

1. e4 {[%emt 0:00:00]} e5 {[%emt 0:00:14]} 2. Nf3 {[%emt 0:00:00]} Nc6 {[%emt 0:00:18]} 3. Nc3 {[%emt 0:00:00]} g6 {[%emt 0:00:14]} 4. d4 {[%emt 0:00:00]} exd4 {[%emt 0:00:06]} 5. Nxd4 {[%emt 0:00:00]} Bg7 {[%emt 0:00:07]} 6. Be3 {[%emt 0:00:05]} Nf6 {[%emt 0:00:38]} 7. Nxc6 {[%emt 0:00:06]} bxc6 {[%emt 0:00:07]} 8. e5 {[%emt 0:00:06]} Ng8 {[%emt 0:00:21]} 9. f4 {[%emt 0:00:13]} Ne7 {[%emt 0:01:12]} 10. Qf3 {[%emt 0:00:27]} O-O {[%emt 0:06:53]} 11. O-O-O {[%emt 0:00:59]} f6 {[%emt 0:00:56]} 12. Bc4+ {[%emt 0:02:46]} Kh8 {[%emt 0:00:32]} 13. Qe4 {[%emt 0:05:56]} d5 {[%emt 0:06:56]} 14. exd6 {[%emt 0:02:22]} cxd6 {[%emt 0:02:46]} 15. Bc5 {[%emt 0:04:06]} f5 {[%emt 0:18:28]} 16. Qe3 {[%emt 0:03:10]} Nd5 {[%emt 0:04:03]} 17. Nxd5 {[%emt 0:02:31]} cxd5 {[%emt 0:03:55]} 18. Bxd5 {[%emt 0:01:11]} Rb8 {[%emt 0:18:17]} 19. Bd4 {[%emt 0:01:00]} Qc7 {[%emt 0:01:18]} 20. Rhe1 {[%emt 0:05:04]} Rb4 {[%emt 0:06:47]} 21. c3 {[%emt 0:04:46]} Bxd4 {[%emt 0:09:53]} 22. Rxd4 {[%emt 0:00:44]} Rb6 {[%emt 0:00:54]} 23. Rc4 {[%emt 0:01:30]} Qd8 {[%emt 0:01:18]} 24. Qd4+ {[%emt 0:00:10]} 1-0

[Event "2nd Hersonissos Open 2018"]
[Site "Hersonissos"]
[Date "2018.06.22"]
[Round "7"]
[White "Ivanov, Svetlen"]
[Black "Serpetsidakis, Nikolaos"]
[Result "0-1"]
[ECO "E63"]
[WhiteElo "1591"]
[BlackElo "2126"]
[Annotator "NA"]
[PlyCount "44"]
[EventDate "2018.06.16"]
[EventType "swiss"]
[EventCountry "GRE"]
[SourceTitle "playchess.com"]
[Source "ChessBase"]
[SourceQuality "1"]
[TimeControl "5400+30"]

1. d4 {[%emt 0:00:00]} Nf6 {[%emt 0:00:05]} 2. Nf3 {[%emt 0:00:00]} g6 {[%emt 0:00:06]} 3. g3 {[%emt 0:00:00]} Bg7 {[%emt 0:00:04]} 4. Bg2 {[%emt 0:00:00]} O-O {[%emt 0:00:06]} 5. O-O {[%emt 0:00:00]} d6 {[%emt 0:00:04]} 6. c4 {[%emt 0:00:00]} Nc6 {[%emt 0:00:15]} 7. Nc3 {[%emt 0:00:07]} a6 {[%emt 0:00:07]} 8. Bg5 {[%emt 0:01:51]} h6 {[%emt 0:01:04]} 9. Bxf6 {[%emt 0:01:39]} Bxf6 {[%emt 0:00:17]} 10. Qd2 {[%emt 0:01:59]} Bg7 {[%emt 0:00:23]} 11. Rad1 {[%emt 0:05:02]} Rb8 {[%emt 0:06:07]} 12. a4 {[%emt 0:07:46]} Bg4 {[%emt 0:11:55]} 13. e3 {[%emt 0:00:45]} e5 {[%emt 0:01:06]} 14. d5 {[%emt 0:00:23]} Na5 {[%emt 0:03:19]} 15. Qd3 {[%emt 0:01:17]} f5 {[%emt 0:01:08]} 16. e4 {[%emt 0:00:10]} Nb3 {[%emt 0:00:59]} 17. Qe3 {[%emt 0:05:31]} Qd7 {[%emt 0:09:55]} 18. Rb1 {[%emt 0:11:48]} Nd4 {[%emt 0:10:22]} 19. Ne1 {[%emt 0:02:51]} f4 {[%emt 0:00:41]} 20. Qd3 {[%emt 0:01:04]} f3 {[%emt 0:00:09]} 21. Bh1 {[%emt 0:00:07]} Ne2+ {[%emt 0:00:14]} 22. Nxe2 {[%emt 0:00:10]} fxe2 {[%emt 0:00:05]} 0-1

[Event "2nd Hersonissos Open 2018"]
[Site "Hersonissos"]
[Date "2018.06.22"]
[Round "7"]
[White "Koutsourakis, Ioannis"]
[Black "Storkebaum, Ulrike"]
[Result "0-1"]
[ECO "E97"]
[WhiteElo "1560"]
[BlackElo "1825"]
[Annotator "NA"]
[PlyCount "138"]
[EventDate "2018.06.16"]
[EventType "swiss"]
[EventCountry "GRE"]
[SourceTitle "playchess.com"]
[Source "ChessBase"]
[SourceQuality "1"]
[TimeControl "5400+30"]

1. d4 {[%emt 0:00:00]} Nf6 {[%emt 0:00:06]} 2. c4 {[%emt 0:00:00]} g6 {[%emt 0:00:07]} 3. Nc3 {[%emt 0:00:00]} Bg7 {[%emt 0:00:04]} 4. e4 {[%emt 0:00:00]} d6 {[%emt 0:00:05]} 5. Nf3 {[%emt 0:00:00]} O-O {[%emt 0:00:08]} 6. Be2 {[%emt 0:00:00]} e5 {[%emt 0:01:47]} 7. O-O {[%emt 0:00:05]} Nc6 {[%emt 0:00:34]} 8. dxe5 {[%emt 0:01:04]} Nxe5 {[%emt 0:01:36]} 9. Nxe5 {[%emt 0:11:25]} dxe5 {[%emt 0:00:16]} 10. Bg5 {[%emt 0:00:06]} c6 {[%emt 0:02:07]} 11. Qc2 {[%emt 0:03:40]} Be6 {[%emt 0:03:55]} 12. h3 {[%emt 0:03:13]} Qe7 {[%emt 0:03:01]} 13. Rad1 {[%emt 0:04:49]} h6 {[%emt 0:01:13]} 14. Be3 {[%emt 0:00:43]} Nd7 {[%emt 0:03:16]} 15. Qd2 {[%emt 0:09:53]} Kh7 {[%emt 0:00:15]} 16. Qd6 {[%emt 0:02:26]} Qxd6 {[%emt 0:09:23]} 17. Rxd6 {[%emt 0:00:03]} Rfe8 {[%emt 0:00:12]} 18. Kh2 {[%emt 0:21:23]} Bf8 {[%emt 0:02:33]} 19. Rdd1 {[%emt 0:02:32]} a5 {[%emt 0:05:15]} 20. g3 {[%emt 0:08:55]} Nc5 {[%emt 0:03:22]} 21. f4 {[%emt 0:03:58]} exf4 {[%emt 0:00:43]} 22. gxf4 {[%emt 0:00:28]} Rad8 {[%emt 0:09:05]} 23. Rxd8 {[%emt 0:02:48]} Rxd8 {[%emt 0:00:07]} 24. f5 {[%emt 0:00:23]} gxf5 {[%emt 0:04:10]} 25. exf5 {[%emt 0:00:03]} Bc8 {[%emt 0:08:32]} 26. Bh5 {[%emt 0:05:24]} f6 {[%emt 0:15:04]} 27. Bg6+ {[%emt 0:02:55]} Kh8 {[%emt 0:00:51]} 28. Kg3 {[%emt 0:12:18]} Rd3 {[%emt 0:02:47]} 29. Kf3 {[%emt 0:00:20]} Nd7 {[%emt 0:02:12]} 30. Ne4 {[%emt 0:01:59]} Ne5+ {[%emt 0:01:24]} 31. Ke2 {[%emt 0:00:07]} Bg7 {[%emt 0:04:17]} 32. Bh5 {[%emt 0:02:45]} b5 {[%emt 0:04:13]} 33. cxb5 {[%emt 0:00:49]} cxb5 {[%emt 0:00:37]} 34. Nc5 {[%emt 0:01:49]} Rd8 {[%emt 0:01:09]} 35. b3 {[%emt 0:00:30]} b4 {[%emt 0:04:18]} 36. Ne4 {[%emt 0:00:33]} Ba6+ {[%emt 0:00:40]} 37. Kf2 {[%emt 0:00:06]} Bxf1 {[%emt 0:00:38]} 38. Kxf1 {[%emt 0:00:02]} Kg8 {[%emt 0:02:36]} 39. Nc5 {[%emt 0:01:11]} Rc8 {[%emt 0:02:35]} 40. Bd1 {[%emt 0:00:00]} Nf7 {[%emt 0:00:00]} 41. Nb7 {[%emt 0:00:00]} Ng5 {[%emt 0:00:00]} 42. h4 {[%emt 0:00:00]} Ne4 {[%emt 0:00:00]} 43. Kg2 {[%emt 0:00:00]} Nc3 {[%emt 0:00:00]} 44. Bf3 {[%emt 0:00:00]} Bf8 {[%emt 0:00:00]} 45. Nxa5 {[%emt 0:00:00]} Nxa2 {[%emt 0:00:00]} 46. Nc4 {[%emt 0:00:00]} Nc3 {[%emt 0:00:00]} 47. Kg3 {[%emt 0:00:00]} Kg7 {[%emt 0:00:00]} 48. Kg4 {[%emt 0:00:00]} Kh7 {[%emt 0:00:00]} 49. Kh5 {[%emt 0:00:00]} Rd8 {[%emt 0:00:00]} 50. Nb2 {[%emt 0:00:00]} Nb5 {[%emt 0:00:00]} 51. Kg4 {[%emt 0:00:00]} Nd4 {[%emt 0:00:00]} 52. Bd1 {[%emt 0:00:00]} Nc6 {[%emt 0:00:00]} 53. Kh5 {[%emt 0:00:00]} Ne5 {[%emt 0:00:00]} 54. Be2 {[%emt 0:00:00]} Ra8 {[%emt 0:00:00]} 55. Na4 {[%emt 0:00:00]} Rc8 {[%emt 0:00:42]} 56. Bd1 {[%emt 0:00:00]} Re8 {[%emt 0:01:15]} 57. Bf4 {[%emt 0:00:00]} Nd3 {[%emt 0:00:35]} 58. Bg3 {[%emt 0:00:00]} Re3 {[%emt 0:01:18]} 59. Bb8 {[%emt 0:00:00]} Ne5 {[%emt 0:01:14]} 60. Nb6 {[%emt 0:00:00]} Rd3 {[%emt 0:00:58]} 61. Bc2 {[%emt 0:00:00]} Rd4 {[%emt 0:01:42]} 62. Bb1 {[%emt 0:00:00]} Nf3 {[%emt 0:00:41]} 63. Bg3 {[%emt 0:00:01]} Bd6 {[%emt 0:01:41]} 64. Bf2 {[%emt 0:01:07]} Rd1 {[%emt 0:01:04]} 65. Be4 {[%emt 0:00:58]} Ne5 {[%emt 0:00:43]} 66. Nd5 {[%emt 0:00:59]} Nd7 {[%emt 0:00:52]} 67. Be3 {[%emt 0:00:34]} Bf8 {[%emt 0:00:55]} 68. Kg4 {[%emt 0:01:26]} Re1 {[%emt 0:00:21]} 69. Bd3 {[%emt 0:00:48]} Ne5+ {[%emt 0:00:18]} 0-1